Workbook

Sheet Лист1
A1: Приложение № 2 к муниципальной программе Североуральского городского округа «Развитие жилищно-коммунального хозяйства и транспортного обслуживания населения, повышение энергетической эффективности и охрана окружающей среды в Североуральском городском округе» на 2014-2020 годы
A2: План мероприятий
A3: по выполнению муниципальной программы Североуральского городского округа
A4: «Развитие жилищно-коммунального хозяйства и транспортного обслуживания населения,
A5: повышение энергетической эффективности и охрана окружающей среды в Североуральском городском округе» на 2014-2020 годы
A7: № строки | B7: Наименование мероприятия/ Источники расходов на финансирование | C7: Объем расходов на выполнение мероприятия за счет всех источников ресурсного обеспечения, тыс. руб. | K7: Номер строки целевых показателей, на достижение которых направлены мероприятия
C8: Всего | D8: 2014 год | E8: 2015 год | F8: 2016 год | G8: 2017 год | H8: 2018 год | I8: 2019 год | J8: 2020 год
B9: 1 | C9: 2 | D9: 3 | E9: 4 | F9: 5 | G9: 6 | H9: 7 | I9: 8 | J9: 9 | K9: 10
A10: 1. | B10: ВСЕГО по муниципальной программе, в том числе: | C10: =SUM(D10:J10) -> 1175201.465 | D10: =SUM(D11:D13) -> 283826.9 | E10: =SUM(E11:E13) -> 348239.16 | F10: =SUM(F11:F13) -> 216622.5876 | G10: =SUM(G11+G12+G13+G14) -> 116568.3174 | H10: =SUM(H11+H12+H13+H14) -> 81381 | I10: 64762.4 | J10: 63801.1 | K10: Х
A11: 1.1. | B11: местный бюджет | C11: 635366.8788 | D11: =SUM(D18+D22) -> 92792.8 | E11: 126635.26 | F11: 117147.5734 | G11: =SUM(G18+G22) -> 90780.94542 | H11: =SUM(H18+H22) -> 80408.1 | I11: 63801.1 | J11: 63801.1
A12: 1.2. | B12: областной бюджет | C12: 336367.1133 | D12: 109216.1 | E12: 135104.3 | F12: 81477.35126 | G12: =SUM(G19+G23) -> 8635.162 | H12: 972.9 | I12: 961.3 | J12: 0
A13: 1.3. | B13: федеральный бюджет | C13: 187456.2705 | D13: =SUM(D24+D20) -> 81818 | E13: 86499.6 | F13: 17997.66293 | G13: 1141.00759 | H13: 0 | I13: 0 | J13: 0 | N13: =SUM(G11:G13) -> 100557.115
A14: 1.4. | B14: внебюджетные источники, в т.ч.: | C14: 16011.2024 | D14: 0 | E14: 0 | F14: 0 | G14: =SUM(G15:G16) -> 16011.2024 | H14: 0 | I14: 0 | J14: 0
A15: 1.5. | B15: - внебюджетные источники | C15: 15815.9368 | D15: 0 | E15: 0 | F15: 0 | G15: =SUM(G26) -> 15815.9368 | H15: 0 | I15: 0 | J15: 0
A16: 1.6. | B16: - средства заинтересованных лиц | C16: 195.2656 | D16: 0 | E16: 0 | F16: 0 | G16: =SUM(G27) -> 195.2656 | H16: 0 | I16: 0 | J16: 0
A17: 2. | B17: Капитальные вложения | C17: =SUM(C18:C20) -> 710006.7997 | D17: =SUM(D18:D20) -> 232761.9 | E17: =SUM(E18:E20) -> 271669 | F17: 133207.8847 | G17: 29070.21501 | H17: 23522.3 | I17: 19775.5 | J17: 0 | K17: Х
A18: 2.1. | B18: местный бюджет | C18: =SUM(D18:J18) -> 193402.4159 | D18: =D35+D128+D196+D216+D246+D279+D348+D367 -> 44727.8 | E18: =E35+E128+E196+E216+E246+E279+E348+E367 -> 50411.3 | F18: =F35+F128+F196+F216+F246+F279+F348+F367 -> 34707.97051 | G18: =G35+G128+G196+G216+G246+G279+G348+G367+G403 -> 20257.54542 | H18: =H35+H128+H196+H216+H246+H279+H348+H367 -> 23522.3 | I18: =I35+I128+I196+I216+I246+I279+I348+I367 -> 19775.5 | J18: =J35+J128+J196+J216+J246+J279+J348+J367 -> 0
A19: 2.2. | B19: областной бюджет | C19: 329148.1133 | D19: =D129+D217+D36 -> 106216.1 | E19: =E129+E217+E36 -> 134758.1 | F19: =F129+F217 -> 80502.25126 | G19: =G129+G217+G404 -> 7671.662 | H19: =H129+H217 -> 0 | I19: =I129+I217 -> 0 | J19: =J129+J217 -> 0
A20: 2.3. | B20: федеральный бюджет | C20: 187456.2705 | D20: =D218 -> 81818 | E20: =E218 -> 86499.6 | F20: 17997.66293 | G20: 1141.00759 | H20: 0 | I20: 0 | J20: 0
A21: 3. | B21: Прочие нужды | C21: 465194.6653 | D21: =SUM(D22:D23) -> 51065 | E21: =SUM(E22:E23) -> 76570.16 | F21: =SUM(F22:F23) -> 83414.70288 | G21: =SUM(G25+G24+G23+G22) -> 87498.1024 | H21: =SUM(H25+H24+H23+H22) -> 57858.7 | I21: =SUM(I25+I24+I23+I22) -> 44986.9 | J21: =SUM(J25+J24+J23+J22) -> 63801.1 | K21: Х
A22: 3.1. | B22: местный бюджет | C22: 441964.4629 | D22: =D50+D174+D205+D234+D288+D357+D383+D255+D336 -> 48065 | E22: 76223.96 | F22: 82439.60288 | G22: =G50+G174+G205+G234+G288+G357+G383+G255+G336+G418 -> 70523.4 | H22: 56885.8 | I22: 44025.6 | J22: 63801.1
A23: 3.2. | B23: областной бюджет | C23: 7219 | D23: =SUM(D175+D382+D51) -> 3000 | E23: 346.2 | F23: 975.1 | G23: =SUM(G175+G382+G51+G419) -> 963.5 | H23: 972.9 | I23: 961.3 | J23: 0
A24: 3.3. | B24: федеральный бюджет | C24: 0 | D24: 0 | E24: =E175 -> 0 | F24: 0 | G24: 0 | H24: 0 | I24: 0 | J24: 0
A25: 3.4. | B25: внебюджетные источники, в т.ч.: | C25: =SUM(C26:C27) -> 16011.2024 | D25: 0 | E25: 0 | F25: 0 | G25: =SUM(G26:G27) -> 16011.2024 | H25: 0 | I25: 0 | J25: 0
A26: 3.5. | B26: - внебюджетные источники | C26: =SUM(D26:J26) -> 15815.9368 | D26: 0 | E26: 0 | F26: 0 | G26: =SUM(G399) -> 15815.9368 | H26: 0 | I26: 0 | J26: 0
A27: 3.6. | B27: - средства заинтересованных лиц | C27: =SUM(D27:J27) -> 195.2656 | D27: 0 | E27: 0 | F27: 0 | G27: =SUM(G400) -> 195.2656 | H27: 0 | I27: 0 | J27: 0
A28: 4. | B28: Подпрограмма 1: Комплексное благоустройство территории Североуральского городского округа
A29: 4.1. | B29: Всего по подпрограмме 1, | C29: =SUM(C31+C32) -> 184638.6913 | D29: =SUM(D31:D32) -> 25725.2 | E29: 29762.2 | F29: 47222.84145 | G29: 30630.64985 | H29: 21980 | I29: 5241.3 | J29: 24076.5 | K29: Х
B30: в том числе:
A31: 4.2. | B31: местный бюджет | C31: =SUM(D31:J31) -> 175933.2913 | D31: =SUM(D35+D50) -> 24510.5 | E31: 26102.3 | F31: 46247.74145 | G31: =SUM(G35+G50) -> 29667.14985 | H31: 21028.1 | I31: 4301 | J31: 24076.5
A32: 4.3. | B32: областной бюджет | C32: =SUM(D32:J32) -> 8705.4 | D32: 1214.7 | E32: 3659.9 | F32: 975.1 | G32: 963.5 | H32: 951.9 | I32: 940.3 | J32: 0
A33: 5. | B33: 1. Капитальные вложения
A34: 5.1. | B34: Всего по направлению «Капитальные вложения» всего, в том числе | C34: =SUM(D34:J34) -> 19351.9 | D34: =SUM(D35+D36) -> 3536.4 | E34: =SUM(E35+E36) -> 3674.7 | F34: =SUM(F35) -> 4819 | G34: =SUM(G35) -> 3575 | H34: =SUM(H35) -> 3746.8 | I34: =SUM(I35) -> 0 | J34: =SUM(J35) -> 0 | K34: Х
A35: 5.2. | B35: местный бюджет | C35: =SUM(D35:J35) -> 14823.5 | D35: =SUM(D46) -> 2321.7 | E35: =SUM(E46) -> 361 | F35: =SUM(F46) -> 4819 | G35: =SUM(G39+G42) -> 3575 | H35: 3746.8 | I35: 0 | J35: 0
A36: 5.3. | B36: областной бюджет | C36: =SUM(D36:J36) -> 4528.4 | D36: =SUM(D43) -> 1214.7 | E36: =SUM(E43) -> 3313.7 | F36: 0 | G36: =SUM(G43) -> 0 | H36: 0 | I36: 0 | J36: 0
A37: 6. | B37: 1.1. Бюджетные инвестиции в объекты капитального строительства
A38: 6.1. | B38: Бюджетные инвестиции в объекты капитального строительства всего, в том числе | C38: 0 | D38: 0 | E38: 0 | F38: 0 | G38: 0 | H38: 0 | I38: 0 | J38: 0 | K38: Х
A39: 6.2. | B39: местный бюджет | C39: 0 | D39: 0 | E39: 0 | F39: 0 | G39: 0 | H39: 0 | I39: 0 | J39: 0
A40: 7. | B40: 1.2. Иные капитальные вложения
A41: 7.1. | B41: Всего | C41: =SUM(D41:J41) -> 19351.9 | D41: =SUM(D42:D43) -> 3536.4 | E41: =SUM(E42:E43) -> 3674.7 | F41: 4819 | G41: 3575 | H41: 3746.8 | I41: 0 | J41: 0 | K41: Х
A42: 7.2. | B42: местный бюджет | C42: =SUM(D42:J42) -> 14823.5 | D42: =SUM(D46) -> 2321.7 | E42: 361 | F42: 4819 | G42: 3575 | H42: 3746.8 | I42: 0 | J42: 0
A43: 7.3. | B43: областной бюджет | C43: =SUM(D43:J43) -> 4528.4 | D43: =SUM(D47) -> 1214.7 | E43: =SUM(E47) -> 3313.7 | F43: 0 | G43: =SUM(G47) -> 0 | H43: 0 | I43: 0 | J43: 0
A44: 8. | B44: Мероприятие 1 Благоустройство дворовых территорий Североуральского городского округа
A45: 8.1. | B45: Всего, из них | C45: =SUM(D45:J45) -> 19351.9 | D45: =D46+D47 -> 3536.4 | E45: =SUM(E46:E47) -> 3674.7 | F45: =SUM(F46) -> 4819 | G45: =SUM(G46) -> 3575 | H45: =SUM(H46) -> 3746.8 | I45: =SUM(I46) -> 0 | J45: =SUM(J46) -> 0 | K45: 4
A46: 8.2. | B46: местный бюджет | C46: =SUM(D46:J46) -> 14823.5 | D46: 2321.7 | E46: 361 | F46: 4819 | G46: 3575 | H46: 3746.8 | I46: 0 | J46: 0
A47: 8.3. | B47: областной бюджет | C47: =D47+E47+F47+G47+H47+I47+J47 -> 4528.4 | D47: 1214.7 | E47: 3313.7 | F47: 0 | G47: 0 | H47: 0 | I47: 0 | J47: 0
A48: 9. | B48: 3. Прочие нужды
A49: 9.1. | B49: Всего по направлению «Прочие нужды», всего, в том числе: | C49: =SUM(D49:J49) -> 165286.7913 | D49: =SUM(D50:D51) -> 22188.8 | E49: 26087.5 | F49: 42403.84145 | G49: 27055.64985 | H49: 18233.2 | I49: 5241.3 | J49: 24076.5 | K49: Х | N49: =SUM(E46+E54) -> 797
A50: 9.2. | B50: местный бюджет | C50: =SUM(D50:J50) -> 161109.7913 | D50: =SUM(D61+D70+D73+D76+D54+D120) -> 22188.8 | E50: =SUM(E61+E70+E73+E76+E54+E120) -> 25741.3 | F50: =SUM(F61+F70+F73+F76+F54+F120) -> 41428.74145 | G50: 26092.14985 | H50: 17281.3 | I50: 4301 | J50: 24076.5
A51: 9.3. | B51: областной бюджет | C51: =SUM(D51:J51) -> 4177 | D51: =SUM(D77) -> 0 | E51: =SUM(E77) -> 346.2 | F51: =SUM(F121) -> 975.1 | G51: =SUM(G121) -> 963.5 | H51: =SUM(H121) -> 951.9 | I51: =SUM(I121) -> 940.3 | J51: =SUM(J121) -> 0
A52: 10. | B52: Мероприятие 1 Благоустройство дворовых территорий Североуральского городского округа
A53: 10.1. | B53: Всего, из них | C53: =SUM(D53:J53) -> 3927.9 | D53: =D54+D55 -> 310.9 | E53: =SUM(E54) -> 436 | F53: 2681 | G53: 500 | H53: 0 | I53: 0 | J53: 0 | K53: 4
A54: 10.2. | B54: местный бюджет | C54: =SUM(D54:J54) -> 3927.9 | D54: 310.9 | E54: 436 | F54: 2681 | G54: 500 | H54: 0 | I54: =SUM(H54) -> 0 | J54: =SUM(I54) -> 0
A55: 10.3. | B55: областной бюджет | C55: =D55+E55+F55+G55+H55+I55+J55 -> 0 | D55: 0 | E55: 0 | F55: 0 | G55: 0 | H55: 0 | I55: 0 | J55: 0
A56: 11. | B56: Мероприятие 2 Благоустройство парков и скверов в городе Североуральске
A57: 11.1. | B57: Всего, из них | C57: =SUM(D57:J57) -> 0 | D57: =D58+D59 -> 0 | E57: =SUM(E58) -> 0 | F57: 0 | G57: 0 | H57: 0 | I57: 0 | J57: 0 | K57: 5
A58: 11.2. | B58: местный бюджет | C58: =SUM(D58:J58) -> 0 | D58: 0 | E58: 0 | F58: 0 | G58: 0 | H58: =SUM(G58) -> 0 | I58: =SUM(H58) -> 0 | J58: =SUM(I58) -> 0
A59: 12. | B59: Мероприятие 3- Уличное освещение
A60: 12.1. | B60: Всего, в том числе: | C60: =SUM(D60:J60) -> 74956.4908 | D60: =SUM(D61) -> 12001 | E60: 12600 | F60: 18150.6908 | G60: 12600 | H60: 6404.8 | I60: 0 | J60: 13200 | K60: 8, 9
A61: 12.2. | B61: местный бюджет | C61: =SUM(D61:J61) -> 74956.4908 | D61: =SUM(D64+D67) -> 12001 | E61: 12600 | F61: 18150.6908 | G61: 12600 | H61: 6404.8 | I61: 0 | J61: 13200
A62: 12.3. | B62: - Обеспечение бесперебойной подачи электроэнергии
A63: 12.4. | B63: Всего: | C63: =SUM(D63:J63) -> 48709.5908 | D63: =SUM(D64) -> 8644.1 | E63: =SUM(E64) -> 8800 | F63: 10660.6908 | G63: 9000 | H63: 2404.8 | I63: 0 | J63: 9200 | K63: 8, 9
A64: 12.5. | B64: местный бюджет | C64: =SUM(D64:J64) -> 48709.5908 | D64: 8644.1 | E64: 8800 | F64: 10660.6908 | G64: 9000 | H64: 2404.8 | I64: 0 | J64: 9200
A65: 12.6. | B65: - Содержание и ремонт сетей уличного освещения
A66: 12.7. | B66: Всего: | C66: =SUM(D66:J66) -> 26246.9 | D66: =SUM(D67) -> 3356.9 | E66: =SUM(E67) -> 3800 | F66: 7490 | G66: 3600 | H66: 4000 | I66: 0 | J66: 4000 | K66: 8, 9
A67: 12.8. | B67: местный бюджет | C67: =SUM(D67:J67) -> 26246.9 | D67: 3356.9 | E67: 3800 | F67: 7490 | G67: 3600 | H67: 4000 | I67: 0 | J67: 4000
A68: 13. | B68: Мероприятие 4 - Озеленение (цветники, валка сухих деревьев)
A69: 13.1. | B69: Всего, из них | C69: =SUM(D69:J69) -> 20007.94386 | D69: =SUM(D70) -> 2890.9 | E69: 2148 | F69: 3923.84386 | G69: 3000 | H69: 3302.5 | I69: 1440.2 | J69: 3302.5 | K69: 11
A70: 13.2. | B70: местный бюджет | C70: =SUM(D70:J70) -> 20007.94386 | D70: 2890.9 | E70: 2148 | F70: 3923.84386 | G70: 3000 | H70: 3302.5 | I70: 1440.2 | J70: 3302.5
A71: 14. | B71: Мероприятие 5 - Организация и содержание мест захоронения
A72: 14.1. | B72: Всего, из них | C72: =SUM(D72:J72) -> 19733.49851 | D72: =SUM(D73) -> 2263.1 | E72: 2306.9 | F72: 3619.44212 | G72: 2961.65639 | H72: 2860.8 | I72: 2860.8 | J72: 2860.8 | K72: 16
A73: 14.2. | B73: местный бюджет | C73: =SUM(D73:J73) -> 19733.49851 | D73: 2263.1 | E73: 2306.9 | F73: 3619.44212 | G73: 2961.65639 | H73: 2860.8 | I73: =SUM(H73) -> 2860.8 | J73: =SUM(I73) -> 2860.8
A74: 15. | B74: Мероприятие 6 - Прочие мероприятия по благоустройству
A75: 15.1. | B75: Всего, в том числе: | C75: =SUM(D75:J75) -> 41883.35813 | D75: =SUM(D76:D77) -> 4722.9 | E75: =SUM(E76:E77) -> 8596.6 | F75: 12256.96467 | G75: 6880.49346 | H75: 4713.2 | I75: 0 | J75: 4713.2 | K75: 5,5.1.,6,11,13,14,15,17
A76: 15.2. | B76: местный бюджет | C76: =SUM(D76:J76) -> 41537.15813 | D76: =SUM(D80+D83+D90+D93+D102+D96+D105+D111+D99+D108+D86) -> 4722.9 | E76: =SUM(E80+E83+E90+E93+E102+E96+E105+E111+E99+E108+E86+E114) -> 8250.4 | F76: =SUM(F80+F83+F90+F93+F102+F96+F105+F111+F99+F108+F86+F114) -> 12256.96467 | G76: =SUM(G80+G83+G90+G93+G102+G96+G105+G111+G99+G108+G86+G114+G117) -> 6880.49346 | H76: =SUM(H80+H83+H90+H93+H102+H96+H105+H111+H99+H108+H86+H114+H117) -> 4713.2 | I76: 0 | J76: 4713.2
A77: 15.3. | B77: областной бюджет | C77: =SUM(D77:J77) -> 346.2 | D77: =SUM(D87) -> 0 | E77: =SUM(E87) -> 346.2 | F77: 0 | G77: 0 | H77: 0 | I77: 0 | J77: 0
A78: 15.4. | B78: - Содержание памятников
A79: 15.5. | B79: Всего: | C79: =SUM(C80) -> 2440.40006 | D79: 369.2 | E79: 404.9 | F79: 384.30006 | G79: 400 | H79: 441 | I79: 0 | J79: 441 | K79: 17
A80: 15.6. | B80: местный бюджет | C80: =SUM(D80:J80) -> 2440.40006 | D80: 369.2 | E80: 404.9 | F80: 384.30006 | G80: 400 | H80: 441 | I80: 0 | J80: 441
A81: 15.7. | B81: - Проведение комплекса профилактических работ по уходу за объектами благоустройства
A82: 15.8. | B82: Всего: | C82: =SUM(C83) -> 6500.2138 | D82: =SUM(D83) -> 1098.7 | E82: =SUM(E83) -> 976.1 | F82: 999.8138 | G82: 1000 | H82: 1212.8 | I82: 0 | J82: 1212.8 | K82: 5
A83: 15.9. | B83: местный бюджет | C83: =SUM(D83:J83) -> 6500.2138 | D83: 1098.7 | E83: 976.1 | F83: 999.8138 | G83: 1000 | H83: 1212.8 | I83: 0 | J83: 1212.8
A84: 15.10. | B84: - Регулирование численности безнадзорных животных
A85: 15.11. | B85: Всего: | C85: =SUM(D85:J85) -> 1677.2 | D85: =SUM(D86:D87) -> 500 | E85: =SUM(E86:E87) -> 1177.2 | F85: 0 | G85: 0 | H85: 0 | I85: 0 | J85: 0 | K85: 13
A86: 15.12. | B86: местный бюджет | C86: =SUM(D86:J86) -> 1331 | D86: 500 | E86: 831 | F86: 0 | G86: 0 | H86: 0 | I86: =SUM(H86) -> 0 | J86: =SUM(I86) -> 0
A87: 15.13. | B87: областной бюджет | C87: =SUM(D87:J87) -> 346.2 | E87: 346.2
A88: 15.14. | B88: - Содержание биоямы (скотомогильник)
A89: 15.15. | B89: Всего: | C89: =SUM(C90) -> 667.98218 | D89: =SUM(D90) -> 116.1 | E89: =SUM(E90) -> 69.3 | F89: 77.02912 | G89: 74.75306 | H89: 165.4 | I89: 0 | J89: 165.4 | K89: 15
A90: 15.16. | B90: местный бюджет | C90: =SUM(D90:J90) -> 667.98218 | D90: 116.1 | E90: 69.3 | F90: 77.02912 | G90: 74.75306 | H90: 165.4 | I90: 0 | J90: 165.4
A91: 15.17. | B91: - Обустройство и эксплуатация новогодних городков
A92: 15.18. | B92: Всего: | C92: =SUM(C93) -> 14561.9 | D92: =SUM(D93) -> 1685.5 | E92: =SUM(E93) -> 2669.2 | F92: 2900 | G92: 2600 | H92: 2353.6 | I92: 0 | J92: 2353.6 | K92: 5
A93: 15.19. | B93: местный бюджет | C93: =SUM(D93:J93) -> 14561.9 | D93: 1685.5 | E93: 2669.2 | F93: 2900 | G93: 2600 | H93: 2353.6 | I93: 0 | J93: 2353.6
A94: 15.20. | B94: - Приобретение декоративного освещения для улиц города Североуральска
A95: 15.21. | B95: Всего: | C95: =SUM(C96) -> 2474.4 | D95: =SUM(D96) -> 773.4 | E95: =SUM(E96) -> 1701 | F95: 0 | G95: 0 | H95: 0 | I95: 0 | J95: 0 | K95: 5
A96: 15.22. | B96: местный бюджет | C96: =SUM(D96:J96) -> 2474.4 | D96: 773.4 | E96: 1701 | F96: 0 | G96: 0 | H96: 0 | I96: =SUM(H96) -> 0 | J96: =SUM(I96) -> 0
A97: 15.23. | B97: - Обслуживание декоративного освещения для улиц города Североуральска
A98: 15.24. | B98: Всего: | C98: =SUM(C99) -> 300 | D98: =SUM(D99) -> 0 | E98: =SUM(E99) -> 0 | F98: 0 | G98: 300 | H98: 0 | I98: 0 | J98: 0 | K98: 5
A99: 15.25. | B99: местный бюджет | C99: =SUM(D99:J99) -> 300 | D99: 0 | E99: 0 | F99: 0 | G99: 300 | H99: 0 | I99: =SUM(H99) -> 0 | J99: =SUM(I99) -> 0
A100: 15.26. | B100: - Акарицидная обработка общественных мест
A101: 15.27. | B101: Всего: | C101: =SUM(C102) -> 998.4899 | D101: =SUM(D102) -> 92 | E101: =SUM(E102) -> 99.9 | F101: 99.9899 | G101: 45 | H101: 330.8 | I101: 0 | J101: 330.8 | K101: 14
A102: 15.28. | B102: местный бюджет | C102: =SUM(D102:J102) -> 998.4899 | D102: 92 | E102: 99.9 | F102: 99.9899 | G102: 45 | H102: 330.8 | I102: 0 | J102: 330.8
A103: 15.29. | B103: - Приобретение грунта плодородного (земли садовой)
A104: 15.30. | B104: Всего: | C104: =SUM(C105) -> 707.2 | D104: =SUM(D105) -> 88 | E104: =SUM(E105) -> 0 | F104: 150 | G104: 50 | H104: 209.6 | I104: 0 | J104: 209.6 | K104: 11
A105: 15.31. | B105: местный бюджет | C105: =SUM(D105:J105) -> 707.2 | D105: 88 | E105: 0 | F105: 150 | G105: 50 | H105: 209.6 | I105: 0 | J105: 209.6
A106: 15.32. | B106: - Приобретение и установка металлических урн и скамеек
A107: 15.33. | B107: Всего: | C107: =SUM(C108) -> 1710.25802 | D107: =SUM(D108) -> 0 | E107: =SUM(E108) -> 0 | F107: 1710.25802 | G107: 0 | H107: 0 | I107: 0 | J107: 0 | K107: 6
A108: 15.34. | B108: местный бюджет | C108: =SUM(D108:J108) -> 1710.25802 | D108: 0 | E108: 0 | F108: 1710.25802 | G108: 0 | H108: 0 | I108: =SUM(H108) -> 0 | J108: =SUM(I108) -> 0
A109: 15.35. | B109: - Благоустройство мест общего пользования территории Североуральского городского округа
A110: 15.36. | B110: Всего: | C110: =SUM(C111) -> 9545.31417 | D110: =SUM(D111) -> 0 | E110: =SUM(E111) -> 1499 | F110: 5935.57377 | G110: 2110.7404 | H110: 0 | I110: 0 | J110: 0 | K110: 5
A111: 15.37. | B111: местный бюджет | C111: =SUM(D111:J111) -> 9545.31417 | D111: 0 | E111: 1499 | F111: 5935.57377 | G111: 2110.7404 | H111: 0 | I111: =SUM(H111) -> 0 | J111: =SUM(I111) -> 0
A112: 15.38. | B112: - Приобретение и установка остановочных комплексов на территории Североуральского городского округа
A113: 15.39. | B113: Всего: | C113: =SUM(C114) -> 0 | D113: =SUM(D114) -> 0 | E113: =SUM(E114) -> 0 | F113: 0 | G113: 0 | H113: 0 | I113: 0 | J113: 0 | K113: 5
A114: 15.40. | B114: местный бюджет | C114: =SUM(D114:J114) -> 0 | D114: 0 | E114: 0 | F114: 0 | G114: 0 | H114: 0 | I114: =SUM(H114) -> 0 | J114: =SUM(I114) -> 0
A115: 15.41. | B115: - Разработка проектно-сметной документации городского сквера по ул. Ленина г. Североуральска
A116: 15.42. | B116: Всего: | C116: =SUM(C117) -> 300 | D116: =SUM(D117) -> 0 | E116: =SUM(E117) -> 0 | F116: 0 | G116: 300 | H116: 0 | I116: 0 | J116: 0 | K116: 5.1.
A117: 15.43. | B117: местный бюджет | C117: =SUM(D117:J117) -> 300 | D117: 0 | E117: 0 | F117: 0 | G117: 300 | H117: 0 | I117: =SUM(H117) -> 0 | J117: =SUM(I117) -> 0
A118: 16. | B118: Мероприятие 7 - Регулирование численности безнадзорных животных
A119: 16.1. | B119: Всего, из них | C119: =SUM(D119:J119) -> 4777.6 | D119: =SUM(D120:D121) -> 0 | E119: =SUM(E120:E121) -> 0 | F119: 1771.9 | G119: 1113.5 | H119: 951.9 | I119: 940.3 | J119: 0 | K119: 13
A120: 16.2. | B120: местный бюджет | C120: =SUM(D120:J120) -> 946.8 | D120: 0 | E120: 0 | F120: 796.8 | G120: 150 | H120: 0 | I120: =SUM(H120) -> 0 | J120: =SUM(I120) -> 0
A121: 16.3. | B121: областной бюджет | C121: =SUM(D121:J121) -> 3830.8 | E121: 0 | F121: 975.1 | G121: 963.5 | H121: 951.9 | I121: 940.3
A122: 17. | B122: Подпрограмма 2: Муниципальная программа по энергосбережению и повышению энергетической эффективности объектов Североуральского городского округа
A123: 17.1. | B123: Всего по подпрограмме 2, в том числе | C123: =SUM(D123:J123) -> 89471.16847 | D123: =SUM(D124:D125) -> 9165.5 | E123: 2961.6 | F123: 15455.86781 | G123: 16337.20066 | H123: 21775.5 | I123: 21775.5 | J123: 2000 | K123: Х
A124: 17.2. | B124: местный бюджет | C124: =SUM(D124:J124) -> 83126.76847 | D124: =SUM(D128+D174) -> 2821.1 | E124: =SUM(E128+E174) -> 2961.6 | F124: =F128+F174 -> 15455.86781 | G124: =SUM(G128+G174) -> 16337.20066 | H124: 21775.5 | I124: =SUM(I128+I174) -> 21775.5 | J124: 2000
A125: 17.3. | B125: областной бюджет | C125: =SUM(D125:J125) -> 6344.4 | D125: =SUM(D129+D175) -> 6344.4 | E125: =SUM(E129+E175) -> 0 | F125: =SUM(F129+F175) -> 0 | G125: 0 | H125: 0 | I125: 0 | J125: 0
A126: 18. | B126: 1. Капитальные вложения
A127: 18.1. | B127: Всего по направлению «Капитальные вложения», всего, в том числе | C127: =SUM(C128:C129) -> 75004.40986 | D127: 4173.6 | E127: 1420 | F127: 14122.6092 | G127: 15737.20066 | H127: 19775.5 | I127: 19775.5 | J127: 0 | K127: Х
A128: 18.2. | B128: местный бюджет | C128: =SUM(D128:J128) -> 71660.00986 | D128: =SUM(D162+D132) -> 829.2 | E128: 1420 | F128: 14122.6092 | G128: 15737.20066 | H128: 19775.5 | I128: 19775.5 | J128: 0
A129: 18.3. | B129: областной бюджет | C129: =SUM(D129:J129) -> 3344.4 | D129: 3344.4 | E129: 0 | F129: 0 | G129: 0 | H129: 0 | I129: 0 | J129: 0
A130: 19. | B130: 1.1. Бюджетные инвестиции в объекты капитального строительства
A131: 19.1. | B131: Бюджетные инвестиции в объекты капитального строительства всего, в том числе | C131: =SUM(D131:J131) -> 16859.80986 | D131: =SUM(D132:D133) -> 0 | E131: =SUM(E132:E133) -> 0 | F131: 14122.6092 | G131: 2737.20066 | H131: 0 | I131: 0 | J131: 0 | K131: Х
A132: 19.2. | B132: местный бюджет | C132: =SUM(D132:J132) -> 16859.80986 | D132: =SUM(D136+D148+D151+D155+D158) -> 0 | E132: 0 | F132: 14122.6092 | G132: 2737.20066 | H132: 0 | I132: 0 | J132: 0
A133: 19.3. | B133: областной бюджет | C133: =SUM(D133:J133) -> 0 | D133: =SUM(D137+D152+D159) -> 0 | E133: =SUM(E137+E152+E159) -> 0 | F133: 0 | G133: 0 | H133: 0 | I133: 0 | J133: 0
A134: 20. | B134: Мероприятие 3 - Закупка и установка осветительного оборудования с заменой неэффективного на энергосберегающее, в том числе замена ламп накаливания на энергосберегающие, строительство, модернизация сетей уличного освещения, проектно-сметные работы, экспертиза проектно-сметной документации
A135: 20.1. | B135: Всего, из них | C135: =SUM(C136:C137) -> 14458.20066 | D135: =SUM(D136:D137) -> 0 | E135: =SUM(E136:E137) -> 0 | F135: 12330 | G135: 2128.20066 | H135: 0 | I135: 0 | J135: 0 | K135: 28
A136: 20.2. | B136: местный бюджет | C136: =SUM(D136:J136) -> 14458.20066 | D136: 0 | E136: 0 | F136: =SUM(F144+F140) -> 12330 | G136: =SUM(G144+G140) -> 2128.20066 | H136: 0 | I136: =SUM(H136) -> 0 | J136: 0
A137: 20.3. | B137: областной бюджет | C137: =SUM(D137:J137) -> 0 | D137: 0 | E137: 0 | F137: 0 | G137: 0 | H137: 0 | I137: 0 | J137: 0
A138: 20.4. | B138: - Разработка ПСД на строительство сетей уличного освещения микрорайона Южный
A139: 20.5. | B139: Всего: | C139: =SUM(C140) -> 283.20066 | D139: 0 | E139: 0 | F139: 283.20066 | G139: 0 | H139: 0 | I139: 0 | J139: 0 | K139: 28
A140: 20.6. | B140: местный бюджет | C140: =SUM(D140:J140) -> 283.20066 | D140: 0 | E140: 0 | F140: 283.20066 | G140: 0 | H140: 0 | I140: =SUM(H140) -> 0 | J140: =SUM(I140) -> 0
A141: 20.7. | B141: областной бюджет | C141: =SUM(D141:J141) -> 0 | D141: 0 | E141: 0 | F141: 0 | G141: 0 | H141: 0 | I141: 0 | J141: 0
A142: 20.8. | B142: - Строительство сетей уличного освещения микрорайона Южный
A143: 20.9. | B143: Всего: | C143: =SUM(C144) -> 14175 | D143: 0 | E143: 0 | F143: 12046.79934 | G143: 2128.20066 | H143: 0 | I143: 0 | J143: 0 | K143: 28
A144: 20.10. | B144: местный бюджет | C144: =SUM(D144:J144) -> 14175 | D144: 0 | E144: 0 | F144: 12046.79934 | G144: 2128.20066 | H144: 0 | I144: =SUM(H144) -> 0 | J144: =SUM(I144) -> 0
A145: 20.11. | B145: областной бюджет | C145: =SUM(D145:J145) -> 0 | D145: 0 | E145: 0 | F145: 0 | G145: 0 | H145: 0 | I145: 0 | J145: 0
A146: 21. | B146: Мероприятие 5 - Разработка, экспертиза проектно-сметной документации на строительство сетей водоснабжения в Североуральском городском округе
A147: 21.1. | B147: Всего, из них | C147: =SUM(D147:J147) -> 0 | D147: =SUM(D148) -> 0 | E147: =SUM(E148) -> 0 | F147: 0 | G147: 0 | H147: 0 | I147: 0 | J147: 0 | K147: 31
A148: 21.2. | B148: местный бюджет | C148: =SUM(D148:J148) -> 0 | D148: 0 | E148: 0 | F148: 0 | G148: 0 | H148: =SUM(G148) -> 0 | I148: =SUM(H148) -> 0 | J148: =SUM(I148) -> 0
A149: 22. | B149: Мероприятие 6 - Строительство сетей водоснабжения в Североуральском городском округе
A150: 22.1. | B150: Всего, из них | C150: =SUM(C151:C152) -> 0 | D150: =SUM(D151:D152) -> 0 | E150: =SUM(E151:E152) -> 0 | F150: 0 | G150: 0 | H150: 0 | I150: 0 | J150: 0 | K150: 32
A151: 22.2. | B151: местный бюджет | C151: =SUM(D151:J151) -> 0 | D151: 0 | E151: 0 | F151: 0 | G151: 0 | H151: =SUM(G151) -> 0 | I151: 0 | J151: 0
A152: 22.3. | B152: областной бюджет | C152: =SUM(D152:J152) -> 0 | D152: 0 | E152: 0 | F152: 0 | G152: 0 | H152: 0 | I152: 0 | J152: 0
A153: 23. | B153: Мероприятие 7 - Разработка, экспертиза проектно-сметной документации на строительство котельных в Североуральском городском округе
A154: 23.1. | B154: Всего, из них | C154: =SUM(D154:J154) -> 2401.6092 | D154: =SUM(D155) -> 0 | E154: =SUM(E155) -> 0 | F154: 1792.6092 | G154: 609 | H154: 0 | I154: 0 | J154: 0 | K154: 33
A155: 23.2. | B155: местный бюджет | C155: =SUM(D155:J155) -> 2401.6092 | D155: 0 | E155: 0 | F155: 1792.6092 | G155: 609 | H155: 0 | I155: =SUM(H155) -> 0 | J155: =SUM(I155) -> 0
A156: 24. | B156: Мероприятие 8 - Строительство котельных в Североуральском городском округе
A157: 24.1. | B157: Всего, из них | C157: =SUM(C158:C159) -> 0 | D157: =SUM(D158:D159) -> 0 | E157: =SUM(E158:E159) -> 0 | F157: 0 | G157: 0 | H157: 0 | I157: 0 | J157: 0 | K157: 34
A158: 24.2. | B158: местный бюджет | C158: =SUM(D158:J158) -> 0 | D158: 0 | E158: 0 | F158: 0 | G158: 0 | H158: 0 | I158: 0 | J158: =SUM(I158) -> 0
A159: 24.3. | B159: областной бюджет | C159: =SUM(D159:J159) -> 0 | D159: 0 | E159: 0 | F159: 0 | G159: 0 | H159: =SUM(G159) -> 0 | I159: =SUM(H159) -> 0 | J159: =SUM(I159) -> 0
A160: 25. | B160: 1.2. Иные капитальные вложения
A161: 25.1. | B161: Всего, в том числе | C161: =SUM(C162:C163) -> 58144.6 | D161: 4173.6 | E161: 1420 | F161: 0 | G161: 13000 | H161: 19775.5 | I161: 19775.5 | J161: 0 | K161: Х
A162: 25.2. | B162: местный бюджет | C162: =SUM(D162:J162) -> 54800.2 | D162: =SUM(D166+D170) -> 829.2 | E162: =SUM(E166+E170) -> 1420 | F162: 0 | G162: 13000 | H162: 19775.5 | I162: 19775.5 | J162: 0
A163: 25.3. | B163: областной бюджет | C163: =SUM(D163:J163) -> 3344.4 | D163: =SUM(D167+D171) -> 3344.4 | E163: =SUM(E167+E171) -> 0 | F163: 0 | G163: 0 | H163: 0 | I163: 0 | J163: 0
A164: 26. | B164: Мероприятие 1- Реконструкция, модернизация водопроводных сетей, сетей системы водоотведения с заменой (без замены) оборудования с более высоким КПД, установка регулируемого привода, реконструкция тепловых сетей, в том числе тепловых пунктов, котельных, капитальный ремонт систем коммунального хозяйства
A165: 26.1. | B165: Всего, в том числе: | C165: =SUM(C166:C167) -> 55588.4 | D165: 3037.4 | E165: 0 | F165: 0 | G165: 13000 | H165: 19775.5 | I165: 19775.5 | J165: 0 | K165: 29
A166: 26.2. | B166: местный бюджет | C166: =SUM(D166:J166) -> 52832 | D166: 281 | E166: 0 | F166: 0 | G166: 13000 | H166: 19775.5 | I166: 19775.5 | J166: 0
A167: 26.3. | B167: областной бюджет | C167: =SUM(D167:J167) -> 2756.4 | D167: 2756.4 | E167: 0 | F167: 0 | G167: 0 | H167: =SUM(G167) -> 0 | I167: =SUM(H167) -> 0 | J167: =SUM(I167) -> 0
A168: 27. | B168: Мероприятие 3 - Закупка и установка осветительного оборудования с заменой неэффективного на энергосберегающее, в том числе замена ламп накаливания на энергосберегающие, строительство, модернизация сетей уличного освещения, проектно-сметные работы, экспертиза проектно-сметной документации
A169: 27.1. | B169: Всего, из них | C169: =SUM(C170:C171) -> 2556.2 | D169: =SUM(D170:D171) -> 1136.2 | E169: =SUM(E170:E171) -> 1420 | F169: 0 | G169: 0 | H169: 0 | I169: 0 | J169: 0 | K169: 28
A170: 27.2. | B170: местный бюджет | C170: =SUM(D170:J170) -> 1968.2 | D170: 548.2 | E170: 1420 | F170: 0 | G170: 0 | H170: 0 | I170: =SUM(H170) -> 0 | J170: 0
A171: 27.3. | B171: областной бюджет | C171: =SUM(D171:J171) -> 588 | D171: 588 | E171: 0 | F171: 0 | G171: 0 | H171: 0 | I171: 0 | J171: 0
A172: 28. | B172: 3. Прочие нужды
A173: 28.1. | B173: Всего по направлению «Прочие нужды», всего, в том числе: | C173: =SUM(D173:J173) -> 14466.75861 | D173: =SUM(D174:D175) -> 4991.9 | E173: =SUM(E174:E175) -> 1541.6 | F173: 1333.25861 | G173: 600 | H173: 2000 | I173: 2000 | J173: 2000 | K173: Х
A174: 28.2. | B174: местный бюджет | C174: =SUM(D174:J174) -> 11466.75861 | D174: =SUM(D178+D183+D187+D190) -> 1991.9 | E174: =SUM(E178+E183+E187+E190) -> 1541.6 | F174: 1333.25861 | G174: 600 | H174: 2000 | I174: 2000 | J174: 2000
A175: 28.3. | B175: областной бюджет | C175: =SUM(D175:J175) -> 3000 | D175: =SUM(D179+D184) -> 3000 | E175: =SUM(E179+E184) -> 0 | F175: 0 | G175: 0 | H175: 0 | I175: 0 | J175: 0
A176: 29. | B176: Мероприятие 2 - Оснащение зданий (строений, сооружений), находящихся в муниципальной собственности, многоквартирных жилых домов, жилых помещений, квартир приборами учета используемых энергетических ресурсов, в том числе разработка проектно-сметной документации
A177: 29.1. | B177: Всего, из них | C177: =SUM(D177:J177) -> 9977.55861 | D177: =SUM(D178:D179) -> 4200 | E177: 1100 | F177: 1250.40861 | G177: 427.15 | H177: 1000 | I177: 1000 | J177: 1000 | K177: 22,23,24,25,26
A178: 29.2. | B178: местный бюджет | C178: =SUM(D178:J178) -> 6977.55861 | D178: 1200 | E178: 1100 | F178: 1250.40861 | G178: 427.15 | H178: 1000 | I178: =SUM(H178) -> 1000 | J178: 1000
A179: 29.3. | B179: областной бюджет | C179: =SUM(D179:J179) -> 3000 | D179: 3000 | E179: =SUM(E180) -> 0 | F179: 0 | G179: 0 | H179: 0 | I179: 0 | J179: 0
A180: 29.4. | B180: федеральный бюджет | C180: =SUM(D180:J180) -> 0 | D180: 0 | E180: 0 | F180: 0 | G180: =SUM(F180) -> 0 | H180: =SUM(G180) -> 0 | I180: =SUM(H180) -> 0 | J180: =SUM(I180) -> 0
A181: 30. | B181: Мероприятие 3 - Закупка и установка осветительного оборудования с заменой неэффективного на энергосберегающее, в том числе замена ламп накаливания на энергосберегающие, строительство, модернизация сетей уличного освещения, проектно-сметные работы, экспертиза проектно-сметной документации
A182: 30.1. | B182: Всего, из них | C182: =SUM(C183:C184) -> 3591.9 | D182: =SUM(D183:D184) -> 411.9 | E182: =SUM(E183:E184) -> 180 | F182: 0 | G182: 0 | H182: 1000 | I182: 1000 | J182: 1000 | K182: 28
A183: 30.2. | B183: местный бюджет | C183: =SUM(D183:J183) -> 3591.9 | D183: 411.9 | E183: 180 | F183: 0 | G183: 0 | H183: 1000 | I183: =SUM(H183) -> 1000 | J183: 1000
A184: 30.3. | B184: областной бюджет | C184: =SUM(D184:J184) -> 0 | D184: 0 | E184: 0 | F184: 0 | G184: 0 | H184: 0 | I184: 0 | J184: 0
A185: 31. | B185: Мероприятие 4- Разработка схемы водоснабжения Североуральского городского округа
A186: 31.1. | B186: Всего, из них | C186: =SUM(D186:J186) -> 380 | D186: =SUM(D187) -> 380 | E186: =SUM(E187) -> 0 | F186: 0 | G186: 0 | H186: 0 | I186: 0 | J186: 0 | K186: 30
A187: 31.2. | B187: местный бюджет | C187: =SUM(D187:J187) -> 380 | D187: 380 | E187: 0 | F187: 0 | G187: =SUM(F187) -> 0 | H187: =SUM(G187) -> 0 | I187: =SUM(H187) -> 0 | J187: =SUM(I187) -> 0
A188: 32. | B188: Мероприятие 9- Прочие мероприятия в области энергосбережения (разработка технических заданий, топливно-энерготехнического баланса и т.п.)
A189: 32.1. | B189: Всего, из них | C189: =SUM(D189:J189) -> 517.3 | D189: =SUM(D190) -> 0 | E189: =SUM(E190) -> 261.6 | F189: 82.85 | G189: 172.85 | H189: 0 | I189: 0 | J189: 0 | K189: 35.36
A190: 32.2. | B190: местный бюджет | C190: =SUM(D190:J190) -> 517.3 | D190: 0 | E190: 261.6 | F190: 82.85 | G190: 172.85 | H190: 0 | I190: =SUM(H190) -> 0 | J190: =SUM(I190) -> 0
A191: 35. | B191: Подпрограмма 3: Развитие лесного хозяйства на территории Североуральского городского округа
A192: 35.1. | B192: Всего по подпрограмме 1, всего, в том числе | C192: =SUM(C193:C193) -> 3728.2 | D192: =SUM(D193) -> 774.1 | E192: =SUM(E193) -> 881.1 | F192: 0 | G192: 573 | H192: 500 | I192: 500 | J192: 500 | K192: Х
A193: 35.2 | B193: местный бюджет | C193: =SUM(D193:J193) -> 3728.2 | D193: =SUM(D205) -> 774.1 | E193: =SUM(E205) -> 881.1 | F193: 0 | G193: 573 | H193: 500 | I193: 500 | J193: 500
A194: 36. | B194: 1. Капитальные вложения
A195: 36.1. | B195: Всего по направлению «Капитальные вложения», всего, в том числе | C195: 0 | D195: 0 | E195: 0 | F195: 0 | G195: 0 | H195: 0 | I195: 0 | J195: 0 | K195: Х
A196: 36.2. | B196: местный бюджет | C196: 0 | D196: 0 | E196: 0 | F196: 0 | G196: 0 | H196: 0 | I196: 0 | J196: 0
A197: 37. | B197: 1.1. Бюджетные инвестиции в объекты капитального строительства
A198: 37.1. | B198: Бюджетные инвестиции в объекты капитального строительства всего, в том числе: | C198: =SUM(C199) -> 0 | D198: =SUM(D199) -> 0 | E198: 0 | F198: 0 | G198: 0 | H198: 0 | I198: 0 | J198: 0 | K198: Х
A199: 37.2. | B199: местный бюджет | C199: 0 | D199: 0 | E199: 0 | F199: 0 | G199: 0 | H199: 0 | I199: 0 | J199: 0
A200: 38. | B200: 1.2. Иные капитальные вложения
A201: 38.1. | B201: Всего, в том числе: | C201: =SUM(B203) -> 0 | D201: 0 | E201: 0 | F201: 0 | G201: 0 | H201: 0 | I201: 0 | J201: 0 | K201: Х
... 255 more rows

Sheet Лист2

Sheet Лист3
